fUSD/lending_fUSD_20260322
["ID","MTS","AMOUNT","RATE_DAILY","PERIOD"]
[408714734,1774165841939,-943.0,0.00016447,2]
[408714735,1774165841948,-168.0,0.00016545,2]
[408714736,1774165841959,-168.0,0.00016575,2]
[408714737,1774165841968,-660.88,0.000166,2]
[408714738,1774165841978,-247.340192,0.00016645,7]
[408714739,1774165841987,-420.882423,0.00016645,7]
[408714740,1774165841996,-384.607576,0.00016645,7]
[408714741,1774165842006,-736.0,0.00016688,2]
[408714742,1774165842016,-1214.0,0.00016702,2]
[408714743,1774165842025,-943.0,0.00016702,2]
[408714744,1774165842035,-168.0,0.00016715,2]
[408714745,1774165842046,-168.0,0.0001683,2]
[408714746,1774165842055,-943.0,0.0001688,2]
[408714747,1774165842065,-1568.0,0.00016895,2]
[408714748,1774165842074,-943.0,0.00016946,2]
[408714749,1774165842083,-11243.49734363,0.00016984,2]
[408714750,1774165842092,-13163.68844796,0.00016984,2]
[408714751,1774165842103,-1195.23419118,0.00017,30]
[408714752,1774165842113,-151.6305,0.00017,2]
[408714753,1774165842122,-456.5,0.00017,30]
[408714754,1774165842132,-943.0,0.00017013,2]
[408714755,1774165842141,-2611.56,0.0001719,2]
[408714756,1774165842150,-943.0,0.000172,2]
[408714757,1774165842160,-943.0,0.00017288,2]
[408714758,1774165842170,-4609.0,0.00017663,2]
[408714759,1774165842180,-2403.0,0.0001781,2]
[408714760,1774165842189,-1521.2547891,0.00017922,2]
[408714761,1774165842199,-1252.0,0.00018112,2]
[408714762,1774165842209,-11243.49734363,0.00018289,2]
[408714763,1774165842218,-13163.68844796,0.00018289,2]
[408714764,1774165842228,-500.0,0.00018473,2]
[408714765,1774165842237,-500.0,0.00018473,2]
[408714766,1774165842247,-500.0,0.00018473,2]
[408714767,1774165842256,-500.0,0.00018473,2]
[408714768,1774165842270,-500.0,0.00018473,2]
[408714769,1774165842279,-500.0,0.00018473,2]
[408714770,1774165842289,-500.0,0.00018473,2]
[408714771,1774165842298,-500.0,0.00018473,2]
[408714772,1774165842308,-500.0,0.00018473,2]
[408714773,1774165842318,-500.0,0.00018473,2]
[408714774,1774165842327,-500.0,0.00018473,2]
[408714775,1774165842337,-588.29991722,0.00018473,2]
[408714776,1774165842347,-7162.61,0.0001852,2]
[408714777,1774165842355,-1000.0,0.00018583,2]
[408714778,1774165842364,-1000.0,0.00018583,2]
[408714779,1774165842374,-1345.0,0.0001869,2]
[408714780,1774165842384,-3514.0,0.0001869,2]
[408714781,1774165842394,-621.0,0.0001869,2]
[408714782,1774165842403,-924.0,0.0001869,2]
[408714783,1774165842413,-1215.0,0.0001869,2]
[408714784,1774165842422,-1261.0,0.0001869,2]
[408714785,1774165842432,-150.0,0.0001869,2]
[408714786,1774165842442,-200.0,0.0001869,2]
[408714787,1774165842451,-2466.0,0.0001869,2]
[408714788,1774165842460,-150.097,0.0001869,2]
[408714789,1774165842470,-150.0,0.0001869,2]
[408714790,1774165842479,-150.147,0.0001869,2]
[408714791,1774165842489,-276.495,0.0001869,2]
[408714792,1774165842499,-416.351,0.0001869,2]
[408714793,1774165842509,-150.064,0.0001869,2]
[408714794,1774165842519,-150.0,0.0001869,2]
[408714795,1774165842529,-6008.0,0.0001869,2]
[408714796,1774165842539,-319.79425984,0.00018731,2]
[408714797,1774165842548,-308.47240642,0.000188,2]
[408714798,1774165842558,-34651.65,0.00018854,2]
[408714799,1774165842567,-1000.0,0.00019062,2]
[408714800,1774165842577,-500.0,0.00019178,30]
[408714801,1774165842586,-500.0,0.00019178,30]
[408714802,1774165842596,-500.0,0.00019178,30]
[408714803,1774165842605,-500.0,0.00019178,30]
[408714804,1774165842615,-500.0,0.00019178,30]
[408714805,1774165842625,-500.0,0.00019178,30]
[408714806,1774165842635,-500.0,0.00019178,30]
[408714807,1774165842644,-500.0,0.00019178,30]
[408714808,1774165842654,-500.0,0.00019178,30]
[408714809,1774165842664,-478.49300463,0.00019178,30]
[408714810,1774165842674,-37118.03,0.000192,2]
[408714811,1774165842683,-2403.0,0.00019298,2]
[408714812,1774165842693,-365.0,0.00019363,5]
[408714813,1774165842706,-927.0,0.00019363,5]
[408714814,1774165842716,-250.66,0.000194,2]
[408714815,1774165842726,-2422.0,0.00019429,2]
[408714816,1774165842736,-1000.0,0.00019494,2]
[408714817,1774165842747,-11243.49734363,0.00019593,2]
[408714818,1774165842757,-13163.68844796,0.00019594,2]
[408714819,1774165842767,-1441.0,0.00019654,2]
[408714820,1774165842777,-471.73,0.000198,2]
[408714821,1774165842788,-1998.73,0.000198,2]
[408714822,1774165842798,-200.0,0.0002,10]
[408714823,1774165842808,-322.049604,0.0002,2]
[408714824,1774165842817,-300.0,0.000201,10]
[408714825,1774165842826,-215.0,0.00020403,2]
[408714826,1774165842835,-442.75,0.00020454,2]
[408714827,1774165842845,-20279.91,0.00020498,2]
[408714828,1774165842854,-827.97,0.000205,7]
[408714829,1774165842865,-263.0,0.00020586,2]
[408714830,1774165842874,-236.81,0.000206,2]
[408714831,1774165842885,-660.88,0.000206,2]
[408714832,1774165842895,-339.0,0.00020779,2]
[408714833,1774165842905,-11243.49734363,0.00020898,2]
[408714834,1774165842914,-13163.68844796,0.00020899,2]
[408714835,1774165842925,-12604.1,0.00021068,2]
[408714836,1774165842934,-153.2788,0.000212,2]
[408714837,1774165842944,-6424.04,0.0002137,2]
[408714838,1774165842954,-1345.0,0.0002169,2]
[408714839,1774165842964,-3514.0,0.0002169,2]
[408714840,1774165842974,-621.0,0.0002169,2]
[408714841,1774165842992,-986.372,0.0002169,2]
[408714842,1774165843002,-150.0,0.0002169,2]
[408714843,1774165843013,-2466.0,0.0002169,2]
[408714844,1774165843023,-150.0,0.0002169,2]
[408714845,1774165843033,-150.0,0.0002169,2]
[408714846,1774165843042,-150.0,0.0002169,2]
[408714847,1774165843052,-150.0,0.0002169,2]
[408714848,1774165843064,-415.0,0.0002169,2]
[408714849,1774165843073,-150.0,0.0002169,2]
[408714850,1774165843082,-6008.0,0.0002169,2]
[408714851,1774165843093,-154.38343801,0.00021798,2]
[408714852,1774165843102,-3055.64,0.00021918,2]
[408714853,1774165843111,-1000.0,0.00021918,2]
[408714854,1774165843120,-1000.0,0.00021918,2]
[408714855,1774165843129,-1000.0,0.00021918,2]
[408714856,1774165843139,-1000.0,0.00021918,2]
[408714857,1774165843149,-1000.0,0.00021918,2]
[408714858,1774165843159,-1000.0,0.00021918,2]
[408714859,1774165843168,-1000.0,0.00021918,2]
[408714860,1774165843178,-1000.0,0.00021918,2]
[408714861,1774165843187,-202.985,0.00021981,30]
[408714862,1774165843197,-6362.6576245,0.00022,2]
[408714863,1774165843207,-151.0,0.00022,2]
[408714864,1774165843216,-414.26,0.00022,30]
[408714865,1774165843226,-11243.49734363,0.00022203,2]
[408714866,1774165843235,-13163.68844796,0.00022203,2]
[408714867,1774165843244,-202.985,0.00022529,30]
[408714868,1774165843253,-37118.03,0.000226,7]
[408714869,1774165843262,-160.0,0.000226,7]
[408714870,1774165843271,-1380.51,0.00022734,2]
[408714871,1774165843280,-1521.2547891,0.00022775,2]
[408714872,1774165843288,-151.0,0.00023,2]
[408714873,1774165843297,-202.985,0.00023077,30]
[408714874,1774165843306,-150.0,0.000231,14]
[408714875,1774165843315,-202.57,0.00023334,2]
[408714876,1774165843324,-11243.49734363,0.00023508,2]
[408714877,1774165843333,-13163.68844796,0.00023508,2]
[408714878,1774165843341,-151.0,0.00024,2]
[408714879,1774165843351,-180.378181,0.00024196,14]
[408714880,1774165843360,-319.79425984,0.00024392,2]
[408714881,1774165843370,-202.985,0.00024447,30]
[408714882,1774165843380,-250.66,0.000245,7]
[408714883,1774165843390,-171.81,0.00024638,2]
[408714884,1774165843399,-874.41,0.00024658,2]
[408714885,1774165843408,-150.0,0.00024658,2]
[408714886,1774165843417,-3514.0,0.0002469,2]
[408714887,1774165843426,-150.0,0.0002469,2]
[408714888,1774165843435,-2466.0,0.0002469,2]
[408714889,1774165843444,-150.0,0.0002469,2]
[408714890,1774165843453,-150.0,0.0002469,2]
[408714891,1774165843461,-150.0,0.0002469,2]
[408714892,1774165843470,-415.0,0.0002469,2]
[408714893,1774165843478,-150.0,0.0002469,2]
[408714894,1774165843487,-11243.49734363,0.00024813,2]
[408714895,1774165843496,-13163.68844796,0.00024813,2]
[408714896,1774165843505,-1223.53,0.00024819,2]
[408714897,1774165843514,-13738.5736829,0.000249,3]
[408714898,1774165843523,-1419.7008147,0.00024913,2]
[408714899,1774165843532,-1336.26649901,0.00025,4]
[408714900,1774165843542,-979.16666667,0.00025,3]
[408714901,1774165843551,-471.73,0.00025,7]
[408714902,1774165843561,-1998.73,0.00025,2]
[408714903,1774165843570,-151.0,0.00025,2]
[408714904,1774165843578,-521.0,0.00025,11]
[408714905,1774165843587,-2000.0,0.000252,2]
[408714906,1774165843596,-827.97,0.000252,7]
[408714907,1774165843606,-154.945,0.000255,2]
[408714908,1774165843615,-316.7780701,0.00025562,2]
[408714909,1774165843626,-660.88,0.000256,7]
[408714910,1774165843636,-152.0,0.00025851,2]
[408714911,1774165843646,-150.0,0.0002589,2]
[408714912,1774165843656,-1777.0,0.00025993,5]
[408714913,1774165843665,-151.0,0.00026,2]
[408714914,1774165843675,-414.26,0.00026189,30]
[408714915,1774165843684,-161.4,0.00027,2]
[408714916,1774165843694,-236.81,0.000271,7]
[408714917,1774165843707,-37118.03,0.000271,7]
[408714918,1774165843716,-3714.26,0.00027123,2]
[408714919,1774165843726,-150.0,0.00027185,2]
[408714920,1774165843736,-522.97,0.00027397,2]
[408714921,1774165843747,-874.41,0.00027397,2]
[408714922,1774165843757,-300.0,0.00027397,2]
[408714923,1774165843767,-27964.52,0.00027397,10]
[408714924,1774165843780,-1521.2547891,0.00027627,2]
[408714925,1774165843790,-3514.0,0.0002769,2]
[408714926,1774165843799,-2466.0,0.0002769,2]
[408714927,1774165843809,-150.0,0.0002769,2]
[408714928,1774165843819,-150.0,0.0002769,2]
[408714929,1774165843829,-415.0,0.0002769,2]
[408714930,1774165843839,-150.0,0.0002769,2]
[408714931,1774165843848,-979.16666667,0.00028,10]
[408714932,1774165843857,-2460.73,0.0002815,2]
[408714933,1774165843867,-150.0,0.00028544,2]
[408714934,1774165843876,-979.16666667,0.000288,10]
[408714935,1774165843886,-2000.0,0.000289,2]
[408714936,1774165843895,-225.472726,0.00029035,14]
[408714937,1774165843904,-150.0,0.000293,14]
[408714938,1774165843914,-1722.08906335,0.00029392,70]
[408714939,1774165843924,-250.66,0.000294,7]
[408714940,1774165843934,-156.6294,0.000297,2]
[408714941,1774165843943,-150.0,0.00029971,2]
[408714942,1774165843952,-362.72905046,0.0003,30]
[408714943,1774165843961,-291.0,0.0003,30]
[408714944,1774165843971,-319.79425984,0.00030053,2]
[408714945,1774165843981,-719.76929868,0.00030055,2]
[408714946,1774165843990,-15310.48292943,0.00030055,2]
[408714947,1774165844000,-202.57,0.00030111,2]
[408714948,1774165844009,-874.41,0.00030137,2]
[408714949,1774165844017,-471.73,0.000302,7]
[408714950,1774165844026,-1998.73,0.000302,2]
[408714951,1774165844036,-414.26,0.00030379,60]
[408714952,1774165844179,-164.89346,0.00030406,14]
[408714953,1774165844207,-1152.0,0.00030471,5]
[408714954,1774165844218,-660.88,0.000305,7]
[408714955,1774165844227,-37118.03,0.000305,7]
[408714956,1774165844237,-3514.0,0.0003069,2]
[408714957,1774165844247,-2466.0,0.0003069,2]
[408714958,1774165844256,-415.0,0.0003069,2]
[408714959,1774165844265,-150.0,0.0003069,2]
[408714960,1774165844275,-150.0,0.0003147,2]
[408714961,1774165844285,-151.0,0.00032041,30]
[408714962,1774165844295,-289.264854,0.00032218,14]
[408714963,1774165844304,-362.72905046,0.00032222,30]
[408714964,1774165844314,-1521.2547891,0.00032479,2]
[408714965,1774165844323,-2000.0,0.000326,2]
[408714966,1774165844332,-500.0,0.00032603,2]
[408714967,1774165844342,-500.0,0.00032603,2]
[408714968,1774165844351,-500.0,0.00032603,2]
[408714969,1774165844360,-500.0,0.00032603,2]
[408714970,1774165844370,-332.01363663,0.00032603,2]
[408714971,1774165844379,-150.0,0.00032603,2]
[408714972,1774165844388,-150.0,0.00032603,2]
[408714973,1774165844398,-200.0,0.00032603,2]
[408714974,1774165844407,-874.41,0.00032877,2]
[408714975,1774165844417,-1000.0,0.00032909,2]
[408714976,1774165844427,-151.0,0.00033041,30]
[408714977,1774165844436,-500.0,0.00033357,120]
[408714978,1774165844447,-3514.0,0.0003369,2]
[408714979,1774165844456,-2466.0,0.0003369,2]
[408714980,1774165844466,-415.0,0.0003369,2]
[408714981,1774165844475,-158.332,0.000339,2]
[408714982,1774165844485,-151.0,0.00034041,30]
[408714983,1774165844495,-250.66,0.000343,7]
[408714984,1774165844514,-362.72905046,0.00034444,30]
[408714985,1774165844526,-414.26,0.00034568,60]
[408714986,1774165844536,-151.0,0.00035041,30]
[408714987,1774165844547,-439.0,0.00035178,2]
[408714988,1774165844557,-5533.0,0.000352,5]
[408714989,1774165844567,-350.0,0.00035219,2]
[408714990,1774165844577,-350.0,0.00035219,2]
[408714991,1774165844587,-350.0,0.00035219,2]
[408714992,1774165844597,-350.0,0.00035219,2]
[408714993,1774165844607,-350.0,0.00035219,2]
[408714994,1774165844617,-350.0,0.00035219,2]
[408714995,1774165844630,-350.0,0.00035219,2]
[408714996,1774165844640,-350.0,0.00035219,2]
[408714997,1774165844650,-223.0,0.00035219,2]
[408714998,1774165844660,-471.13302187,0.00035589,120]
[408714999,1774165844670,-471.73,0.000356,30]
[408715000,1774165844681,-1998.73,0.000356,2]
[408715001,1774165844692,-874.41,0.00035616,2]
[408715002,1774165844707,-319.79425984,0.00035714,2]
[408715003,1774165844717,-850.0,0.00035756,2]
[408715004,1774165844728,-850.0,0.00035756,2]
[408715005,1774165844739,-850.0,0.00035756,2]
[408715006,1774165844749,-850.0,0.00035756,2]
[408715007,1774165844760,-850.0,0.00035756,2]
[408715008,1774165844771,-850.0,0.00035756,2]
[408715009,1774165844782,-850.0,0.00035756,2]
[408715010,1774165844793,-850.0,0.00035756,2]
[408715011,1774165844802,-850.0,0.00035756,2]
[408715012,1774165844812,-606.0,0.00035756,2]
[408715013,1774165844822,-391.90653,0.00035888,30]
[408715014,1774165844832,-521.0,0.00036,21]
[408715015,1774165844842,-151.0,0.00036041,30]
[408715016,1774165844852,-391.90653,0.00036088,30]
[408715017,1774165844863,-660.88,0.000361,30]
[408715018,1774165844873,-2000.0,0.00036139,2]
[408715019,1774165844883,-2000.0,0.00036139,2]
[408715020,1774165844893,-2000.0,0.00036139,2]
[408715021,1774165844904,-2000.0,0.00036139,2]
[408715022,1774165844915,-2000.0,0.00036139,2]
[408715023,1774165844925,-2000.0,0.00036139,2]
[408715024,1774165844935,-2000.0,0.00036139,2]
[408715025,1774165844945,-2000.0,0.00036139,2]
[408715026,1774165844956,-2000.0,0.00036139,2]
[408715027,1774165844967,-2000.0,0.00036139,2]
[408715028,1774165844983,-785.51132897,0.00036281,120]
[408715029,1774165845005,-1502.05338686,0.00036281,120]
[408715030,1774165845026,-168.10209675,0.00036281,120]
[408715031,1774165845036,-391.90653,0.00036288,30]
[408715032,1774165845047,-2000.0,0.000363,2]
[408715033,1774165845057,-391.90653,0.00036488,30]
[408715034,1774165845068,-362.72905046,0.00036667,30]
[408715035,1774165845080,-391.90653,0.00036688,30]
[408715036,1774165845094,-3514.0,0.0003669,2]
[408715037,1774165845105,-2466.0,0.0003669,2]
[408715038,1774165845118,-1306.3551,0.00036888,7]
[408715039,1774165845130,-391.90653,0.00036888,30]
[408715040,1774165845141,-151.0,0.00037041,30]
[408715041,1774165845153,-391.90653,0.00037088,30]
[408715042,1774165845164,-391.90653,0.00037288,30]
[408715043,1774165845174,-2515.595,0.00037302,48]
[408715044,1774165845185,-1100.0,0.00037322,2]
[408715045,1774165845196,-1100.0,0.00037322,2]
[408715046,1774165845206,-1100.0,0.00037322,2]
[408715047,1774165845216,-1100.0,0.00037322,2]
[408715048,1774165845226,-1100.0,0.00037322,2]
[408715049,1774165845235,-1100.0,0.00037322,2]
[408715050,1774165845247,-1100.0,0.00037322,2]
[408715051,1774165845258,-1100.0,0.00037322,2]
[408715052,1774165845268,-1100.0,0.00037322,2]
[408715053,1774165845279,-825.0,0.00037322,2]
[408715054,1774165845290,-1521.2547891,0.00037331,2]
[408715055,1774165845300,-391.90653,0.00037488,30]
[408715056,1774165845311,-2000.0,0.00037636,2]
[408715057,1774165845321,-2000.0,0.00037636,2]
[408715058,1774165845331,-2000.0,0.00037636,2]
[408715059,1774165845340,-2000.0,0.00037636,2]
[408715060,1774165845351,-2000.0,0.00037636,2]
[408715061,1774165845362,-2000.0,0.00037636,2]
[408715062,1774165845374,-2000.0,0.00037636,2]
[408715063,1774165845383,-2000.0,0.00037636,2]
[408715064,1774165845393,-2000.0,0.00037636,2]
[408715065,1774165845402,-1873.0,0.00037636,2]
[408715066,1774165845412,-391.90653,0.00037688,30]
[408715067,1774165845422,-391.90653,0.00037888,30]
[408715068,1774165845432,-500.0,0.0003789,2]
[408715069,1774165845441,-250.66,0.000379,7]
[408715070,1774165845451,-151.0,0.00038041,30]
[408715071,1774165845465,-391.90653,0.00038088,30]
[408715072,1774165845475,-160.0532,0.000381,2]
[408715073,1774165845486,-2000.0,0.0003821,2]
[408715074,1774165845496,-2000.0,0.0003821,2]
[408715075,1774165845508,-2000.0,0.0003821,2]
[408715076,1774165845518,-2000.0,0.0003821,2]
[408715077,1774165845529,-2000.0,0.0003821,2]
[408715078,1774165845539,-2000.0,0.0003821,2]
[408715079,1774165845548,-2000.0,0.0003821,2]
[408715080,1774165845558,-2000.0,0.0003821,2]
[408715081,1774165845567,-2000.0,0.0003821,2]
[408715082,1774165845578,-1619.0,0.0003821,2]
[408715083,1774165845588,-391.90653,0.00038288,30]
[408715084,1774165845598,-217.56047974,0.00038329,120]
[408715085,1774165845609,-817.5,0.00038428,7]
[408715086,1774165845618,-391.90653,0.00038488,30]
[408715087,1774165845628,-391.90653,0.00038688,30]
[408715088,1774165845639,-414.26,0.00038757,90]
[408715089,1774165845649,-362.72905046,0.00038889,30]
[408715090,1774165845660,-391.90653,0.00039088,30]
[408715091,1774165845670,-1093.0,0.00039238,7]
[408715092,1774165845680,-391.90653,0.00039288,30]
[408715093,1774165845690,-391.90653,0.00039488,30]
[408715094,1774165845702,-391.90653,0.00039688,30]
[408715095,1774165845713,-3514.0,0.0003969,2]
[408715096,1774165845723,-2466.0,0.0003969,2]
[408715097,1774165845734,-1990.0,0.00039726,120]
[408715098,1774165845745,-391.90653,0.00039888,30]
[408715099,1774165845755,-2460.73,0.00039931,2]
[408715100,1774165845765,-2000.0,0.0004,2]
[408715101,1774165845777,-1093.0,0.00040048,30]
[408715102,1774165845788,-391.90653,0.00040088,30]
[408715103,1774165845798,-391.90653,0.00040288,30]
[408715104,1774165845808,-391.90653,0.00040488,30]
[408715105,1774165845818,-391.90653,0.00040688,30]
[408715106,1774165845828,-1093.0,0.00040858,30]
[408715107,1774165845840,-391.90653,0.00040888,30]
[408715108,1774165845853,-1998.73,0.000409,30]
[408715109,1774165845864,-250.66,0.000409,30]
[408715110,1774165845874,-400.0,0.000409,14]
[408715111,1774165845884,-231.0,0.0004093,30]
[408715112,1774165845895,-235.22003134,0.0004099,2]
[408715113,1774165845906,-2705.49194924,0.00041,30]
[408715114,1774165845917,-471.73,0.00041,30]
[408715115,1774165845928,-2077.6,0.00041068,120]
[408715116,1774165845937,-2310.74351035,0.00041068,120]
[408715117,1774165845948,-203.0,0.00041074,30]
[408715118,1774165845959,-391.90653,0.00041088,30]
[408715119,1774165845969,-660.88,0.000411,30]
[408715120,1774165845980,-362.72905046,0.00041111,30]
[408715121,1774165845989,-827.97,0.000412,30]
[408715122,1774165846000,-204.451999,0.00041211,120]
[408715123,1774165846010,-391.90653,0.00041288,30]
[408715124,1774165846020,-319.79425984,0.00041375,3]
[408715125,1774165846030,-391.90653,0.00041488,30]
[408715126,1774165846040,-1093.0,0.00041668,30]
[408715127,1774165846050,-391.90653,0.00041688,30]
[408715129,1774165846061,-391.90653,0.00041888,30]
[408715131,1774165846072,-1521.2547891,0.00042184,28]
[408715133,1774165846082,-37118.03,0.000423,7]
[408715135,1774165846093,-161.793,0.000423,2]
[408715137,1774165846103,-300.0,0.00042427,2]
[408715139,1774165846112,-520.90741423,0.00042427,2]
[408715141,1774165846122,-307.59307592,0.00042427,2]
[408715144,1774165846132,-300.0,0.00042427,2]
[408715146,1774165846142,-302.0391485,0.00042427,2]
[408715148,1774165846151,-300.0,0.00042427,2]
[408715149,1774165846160,-417.11348177,0.00042427,2]
[408715150,1774165846170,-300.0,0.00042427,2]
[408715151,1774165846180,-300.0,0.00042427,2]
[408715152,1774165846190,-717.54642308,0.00042427,2]
[408715153,1774165846199,-300.0,0.00042427,2]
[408715154,1774165846209,-300.0,0.00042427,2]
[408715155,1774165846219,-1086.77526194,0.00042427,2]
[408715156,1774165846232,-300.0,0.00042427,2]
[408715157,1774165846242,-300.0,0.00042427,2]
[408715159,1774165846252,-300.0,0.00042427,2]
[408715161,1774165846262,-300.0,0.00042427,2]
[408715163,1774165846272,-300.0,0.00042427,2]
[408715165,1774165846281,-370.01483087,0.00042427,2]
[408715167,1774165846291,-300.0,0.00042427,2]
[408715169,1774165846300,-300.0,0.00042427,2]
[408715171,1774165846310,-300.0,0.00042427,2]
[408715173,1774165846320,-300.0,0.00042427,2]
[408715175,1774165846329,-300.0,0.00042427,2]
[408715178,1774165846339,-300.0,0.00042427,2]
[408715181,1774165846348,-300.0,0.00042427,2]
[408715183,1774165846358,-300.0,0.00042427,2]
[408715186,1774165846368,-300.0,0.00042427,2]
[408715187,1774165846378,-301.000602,0.00042427,2]
[408715188,1774165846388,-300.0,0.00042427,2]
[408715189,1774165846399,-300.0,0.00042427,2]
[408715190,1774165846410,-300.0,0.00042427,2]
[408715191,1774165846420,-600.11635329,0.00042427,2]
[408715192,1774165846430,-300.0,0.00042427,2]
[408715193,1774165846440,-300.0,0.00042427,2]
[408715194,1774165846451,-300.0,0.00042427,2]
[408715195,1774165846462,-300.0,0.00042427,2]
[408715196,1774165846473,-555.90105714,0.00042427,2]
[408715197,1774165846484,-300.3537239,0.00042427,2]
[408715198,1774165846494,-300.0,0.00042427,2]
[408715199,1774165846503,-300.0,0.00042427,2]
[408715200,1774165846513,-300.0,0.00042427,2]
[408715201,1774165846523,-1138.86212569,0.00042427,2]
[408715202,1774165846532,-307.35924896,0.00042427,2]
[408715203,1774165846542,-300.0,0.00042427,2]
[408715204,1774165846552,-858.24055709,0.00042427,2]
[408715205,1774165846562,-300.0,0.00042427,2]
[408715206,1774165846572,-300.0,0.00042427,2]
[408715207,1774165846583,-300.0,0.00042427,2]
[408715208,1774165846593,-300.0,0.00042427,2]
[408715209,1774165846603,-308.63412797,0.00042427,2]
[408715210,1774165846613,-300.0,0.00042427,2]
[408715211,1774165846623,-300.0,0.00042427,2]
[408715212,1774165846633,-300.0,0.00042427,2]
[408715213,1774165846643,-460.5100828,0.00042427,2]
[408715214,1774165846655,-300.0,0.00042427,2]
[408715215,1774165846664,-300.0,0.00042427,2]
[408715216,1774165846673,-300.0,0.00042427,2]
[408715217,1774165846683,-448.59580951,0.00042427,2]
[408715218,1774165846693,-300.0,0.00042427,2]
[408715219,1774165846708,-300.0,0.00042427,2]
[408715220,1774165846718,-302.71758979,0.00042427,2]
[408715221,1774165846728,-300.0,0.00042427,2]
[408715223,1774165846739,-300.0,0.00042427,2]
[408715225,1774165846750,-300.0,0.00042427,2]
[408715228,1774165846837,-520.90741423,0.00042427,2]
[408715229,1774165846846,-307.59307592,0.00042427,2]
[408715231,1774165846856,-300.0,0.00042427,2]
[408715233,1774165846865,-300.0,0.00042427,2]
[408715234,1774165846875,-300.0,0.00042427,2]
[408715235,1774165846883,-417.11348177,0.00042427,2]
[408715236,1774165846891,-300.0,0.00042427,2]
[408715237,1774165846901,-300.0,0.00042427,2]
[408715238,1774165846910,-717.54642308,0.00042427,2]
[408715239,1774165846920,-300.0,0.00042427,2]
[408715240,1774165846929,-300.0,0.00042427,2]
[408715241,1774165846939,-1086.77526194,0.00042427,2]
[408715242,1774165846948,-300.0,0.00042427,2]
[408715243,1774165846959,-300.0,0.00042427,2]
[408715244,1774165846969,-300.0,0.00042427,2]
[408715245,1774165846978,-300.0,0.00042427,2]
[408715246,1774165846991,-300.0,0.00042427,2]
[408715247,1774165847001,-300.0,0.00042427,2]
[408715248,1774165847010,-300.0,0.00042427,2]
[408715249,1774165847019,-300.0,0.00042427,2]
[408715250,1774165847028,-300.0,0.00042427,2]
[408715251,1774165847038,-300.0,0.00042427,2]
[408715252,1774165847047,-300.0,0.00042427,2]
[408715253,1774165847057,-300.0,0.00042427,2]
[408715254,1774165847066,-300.0,0.00042427,2]
[408715255,1774165847075,-300.0,0.00042427,2]
[408715256,1774165847084,-301.000602,0.00042427,2]
[408715257,1774165847094,-300.0,0.00042427,2]
[408715258,1774165847103,-300.0,0.00042427,2]
[408715259,1774165847112,-300.0,0.00042427,2]
[408715260,1774165847121,-600.11635329,0.00042427,2]
[408715261,1774165847131,-300.0,0.00042427,2]
[408715262,1774165847140,-300.0,0.00042427,2]
[408715263,1774165847149,-300.0,0.00042427,2]
[408715264,1774165847159,-300.0,0.00042427,2]
[408715265,1774165847168,-555.90105714,0.00042427,2]
[408715266,1774165847182,-300.0,0.00042427,2]